[Event "Titled Tuesday Blitz January 10 Late 2023"]
[White "Fernandez Guillen, Ernesto J."]
[Black "Svane, Frederik"]
[WhiteFideId "3512428"]
[BlackFideId "12923044"]
[WhiteElo "2477"]
[BlackElo "2600"]
[Result "0-1"]
[Round "11"]
[TimeControl "180+2"]
[Date "2023.01.10"]
[WhiteClock "0:00:48"]
[BlackClock "0:00:26"]

1. e4 {[%clk 0:00:00]}  c5 {[%clk 0:00:00]} 2. Nf3 {[%clk 0:03:00]}  d6 {[%clk 0:03:00]} 3. d4 {[%clk 0:02:59]}  cxd4 {[%clk 0:02:59]} 4. Nxd4 {[%clk 0:03:00]}  Nf6 {[%clk 0:03:00]} 5. Nc3 {[%clk 0:03:00]}  Nc6 {[%clk 0:03:01]} 6. Bc4 {[%clk 0:03:00]}  Bd7 {[%clk 0:03:01]} 7. Bb3 {[%clk 0:02:59]}  e6 {[%clk 0:02:59]} 8. Be3 {[%clk 0:02:58]}  Be7 {[%clk 0:02:54]} 9. Rg1 {[%clk 0:02:56]}  Na5 {[%clk 0:02:51]} 10. g4 {[%clk 0:02:55]}  h5 {[%clk 0:02:47]} 11. h3 {[%clk 0:02:54]}  Rc8 {[%clk 0:02:46]} 12. g5 {[%clk 0:02:46]}  Rxc3 {[%clk 0:02:23]} 13. bxc3 {[%clk 0:02:43]}  Nxe4 {[%clk 0:02:21]} 14. g6 {[%clk 0:02:36]}  Bf6 {[%clk 0:02:21]} 15. gxf7+ {[%clk 0:02:36]}  Kxf7 {[%clk 0:02:01]} 16. Qd3 {[%clk 0:02:22]}  d5 {[%clk 0:02:02]} 17. f3 {[%clk 0:02:10]}  Nd6 {[%clk 0:01:48]} 18. Qg6+ {[%clk 0:01:43]}  Kf8 {[%clk 0:01:12]} 19. Bg5 {[%clk 0:01:26]}  e5 {[%clk 0:01:12]} 20. Ne2 {[%clk 0:01:18]}  Nac4 {[%clk 0:01:08]} 21. O-O-O {[%clk 0:01:06]}  Qa5 {[%clk 0:00:54]} 22. Kb1 {[%clk 0:00:53]}  Bf5 {[%clk 0:00:35]} 23. Bxc4 {[%clk 0:00:48]}  Nxc4 {[%clk 0:00:26]} 0-1


[Site "https://www.chess.com"]

[Event "Titled Tuesday Blitz January 10 Late 2023"]
[White "Zhigalko, Sergei"]
[Black "Nazari, Arad"]
[WhiteFideId "13502956"]
[BlackFideId "12577324"]
[WhiteElo "2572"]
[BlackElo "2367"]
[Result "1-0"]
[Round "11"]
[TimeControl "180+2"]
[Date "2023.01.10"]
[WhiteClock "0:00:22"]
[BlackClock "0:00:19"]

1. e4 {[%clk 0:00:00]}  c5 {[%clk 0:00:00]} 2. Nf3 {[%clk 0:03:00]}  d6 {[%clk 0:02:59]} 3. d4 {[%clk 0:03:00]}  cxd4 {[%clk 0:03:00]} 4. Qxd4 {[%clk 0:03:00]}  Nc6 {[%clk 0:03:01]} 5. Bb5 {[%clk 0:03:01]}  Bd7 {[%clk 0:03:01]} 6. Bxc6 {[%clk 0:03:01]}  Bxc6 {[%clk 0:03:01]} 7. Nc3 {[%clk 0:03:02]}  Nf6 {[%clk 0:03:02]} 8. Bg5 {[%clk 0:03:03]}  e6 {[%clk 0:03:03]} 9. O-O-O {[%clk 0:03:03]}  Be7 {[%clk 0:03:03]} 10. Rhe1 {[%clk 0:03:03]}  O-O {[%clk 0:03:04]} 11. Kb1 {[%clk 0:03:04]}  h6 {[%clk 0:03:03]} 12. Bh4 {[%clk 0:03:04]}  b5 {[%clk 0:02:22]} 13. Bxf6 {[%clk 0:03:04]}  Bxf6 {[%clk 0:02:22]} 14. Qxd6 {[%clk 0:03:04]}  Qb6 {[%clk 0:02:21]} 15. Ne5 {[%clk 0:03:04]}  Bxe5 {[%clk 0:02:19]} 16. Qxe5 {[%clk 0:03:03]}  b4 {[%clk 0:02:19]} 17. Ne2 {[%clk 0:03:04]}  Qxf2 {[%clk 0:02:16]} 18. Nf4 {[%clk 0:03:04]}  Rfe8 {[%clk 0:02:17]} 19. Nh5 {[%clk 0:03:04]}  f6 {[%clk 0:00:45]} 20. Qc7 {[%clk 0:03:03]}  Qxg2 {[%clk 0:00:46]} 21. Rg1 {[%clk 0:03:04]}  Rac8 {[%clk 0:00:37]} 22. Qxa7 {[%clk 0:02:47]}  Ra8 {[%clk 0:00:37]} 23. Qxa8 {[%clk 0:02:18]}  Qxg1 {[%clk 0:00:33]} 24. Qxe8+ {[%clk 0:00:54]}  Bxe8 {[%clk 0:00:32]} 25. Nxf6+ {[%clk 0:00:50]}  Kf7 {[%clk 0:00:33]} 26. Rxg1 {[%clk 0:00:47]}  Kxf6 {[%clk 0:00:32]} 27. Rg3 {[%clk 0:00:47]}  g5 {[%clk 0:00:33]} 28. Rb3 {[%clk 0:00:39]}  Ke5 {[%clk 0:00:18]} 29. Rxb4 {[%clk 0:00:38]}  Bc6 {[%clk 0:00:19]} 30. a4 {[%clk 0:00:38]}  h5 {[%clk 0:00:20]} 31. a5 {[%clk 0:00:38]}  g4 {[%clk 0:00:20]} 32. Rb6 {[%clk 0:00:38]}  Kd6 {[%clk 0:00:21]} 33. Rb8 {[%clk 0:00:28]}  Bxe4 {[%clk 0:00:19]} 34. Rh8 {[%clk 0:00:22]} 1-0


[Site "https://www.chess.com"]

[Event "Titled Tuesday Blitz January 10 Late 2023"]
[White "Wieczorek, Oskar"]
[Black "Indjic, Aleksandar"]
[WhiteFideId "1133950"]
[BlackFideId "911925"]
[WhiteElo "2512"]
[BlackElo "2618"]
[Result "1/2-1/2"]
[Round "11"]
[TimeControl "180+2"]
[Date "2023.01.10"]
[WhiteClock "0:00:04"]
[BlackClock "0:00:03"]

1. e4 {[%clk 0:00:00]}  e5 {[%clk 0:00:00]} 2. Nf3 {[%clk 0:02:55]}  Nc6 {[%clk 0:03:00]} 3. Nc3 {[%clk 0:02:55]}  Nf6 {[%clk 0:03:01]} 4. h3 {[%clk 0:02:56]}  d5 {[%clk 0:03:00]} 5. exd5 {[%clk 0:02:56]}  Nxd5 {[%clk 0:02:56]} 6. Bb5 {[%clk 0:02:56]}  Nxc3 {[%clk 0:02:56]} 7. bxc3 {[%clk 0:02:57]}  Bd6 {[%clk 0:02:56]} 8. d4 {[%clk 0:02:58]}  exd4 {[%clk 0:02:56]} 9. cxd4 {[%clk 0:02:58]}  O-O {[%clk 0:02:56]} 10. O-O {[%clk 0:02:59]}  Ne7 {[%clk 0:02:56]} 11. Re1 {[%clk 0:02:59]}  h6 {[%clk 0:02:39]} 12. Bf1 {[%clk 0:02:58]}  c5 {[%clk 0:02:33]} 13. Bb2 {[%clk 0:02:54]}  Nf5 {[%clk 0:02:30]} 14. d5 {[%clk 0:02:17]}  Bd7 {[%clk 0:02:20]} 15. c4 {[%clk 0:02:11]}  Re8 {[%clk 0:01:57]} 16. Bd3 {[%clk 0:02:08]}  Rxe1+ {[%clk 0:01:53]} 17. Qxe1 {[%clk 0:02:05]}  Bf8 {[%clk 0:01:49]} 18. Qe4 {[%clk 0:02:05]}  g6 {[%clk 0:01:40]} 19. Re1 {[%clk 0:01:57]}  Bg7 {[%clk 0:01:38]} 20. Bxg7 {[%clk 0:01:49]}  Nxg7 {[%clk 0:01:35]} 21. g4 {[%clk 0:01:49]}  Qf6 {[%clk 0:01:33]} 22. Ne5 {[%clk 0:01:45]}  Rd8 {[%clk 0:01:29]} 23. Re3 {[%clk 0:01:43]}  Be8 {[%clk 0:00:57]} 24. f4 {[%clk 0:01:17]}  Ba4 {[%clk 0:00:53]} 25. Nf3 {[%clk 0:01:02]}  Re8 {[%clk 0:00:41]} 26. Ne5 {[%clk 0:00:36]}  h5 {[%clk 0:00:39]} 27. g5 {[%clk 0:00:35]}  Qd6 {[%clk 0:00:32]} 28. Qf3 {[%clk 0:00:35]}  Bd7 {[%clk 0:00:31]} 29. Nxd7 {[%clk 0:00:31]}  Rxe3 {[%clk 0:00:21]} 30. Qxe3 {[%clk 0:00:28]}  Qxd7 {[%clk 0:00:16]} 31. Kg2 {[%clk 0:00:22]}  b6 {[%clk 0:00:16]} 32. Qe5 {[%clk 0:00:20]}  Kf8 {[%clk 0:00:16]} 33. d6 {[%clk 0:00:20]}  Qe6 {[%clk 0:00:14]} 34. Be4 {[%clk 0:00:18]}  h4 {[%clk 0:00:13]} 35. Bd5 {[%clk 0:00:11]}  Qxe5 {[%clk 0:00:11]} 36. fxe5 {[%clk 0:00:07]}  Ke8 {[%clk 0:00:06]} 37. Kf3 {[%clk 0:00:07]}  Nf5 {[%clk 0:00:05]} 38. Kf4 {[%clk 0:00:08]}  a6 {[%clk 0:00:04]} 39. a4 {[%clk 0:00:07]}  Nd4 {[%clk 0:00:03]} 40. Kg4 {[%clk 0:00:07]}  Nf5 {[%clk 0:00:02]} 41. Bb7 {[%clk 0:00:04]}  Ne3+ {[%clk 0:00:03]} 42. Kxh4 {[%clk 0:00:03]}  Nxc4 {[%clk 0:00:01]} 43. Bxa6 {[%clk 0:00:04]}  Nxe5 {[%clk 0:00:02]} 44. Bb5+ {[%clk 0:00:04]}  Kd8 {[%clk 0:00:02]} 45. Kg3 {[%clk 0:00:04]}  c4 {[%clk 0:00:03]} 46. Kf4 {[%clk 0:00:05]}  c3 {[%clk 0:00:03]} 47. Ke3 {[%clk 0:00:05]}  Kc8 {[%clk 0:00:03]} 48. Be8 {[%clk 0:00:04]}  Kd8 {[%clk 0:00:03]} 49. Bb5 {[%clk 0:00:03]}  Kc8 {[%clk 0:00:03]} 50. Be8 {[%clk 0:00:03]}  Kd8 {[%clk 0:00:03]} 51. Bb5 {[%clk 0:00:04]} 1/2-1/2


[Site "https://www.chess.com"]

[Event "Titled Tuesday Blitz January 10 Late 2023"]
[White "Boros, Denes"]
[Black "Petukhov, Dmitry"]
[WhiteFideId "722340"]
[BlackFideId "4142748"]
[WhiteElo "2406"]
[BlackElo "2350"]
[Result "1-0"]
[Round "11"]
[TimeControl "180+2"]
[Date "2023.01.10"]
[WhiteClock "0:00:17"]
[BlackClock "0:00:04"]

1. d4 {[%clk 0:00:00]}  Nf6 {[%clk 0:00:00]} 2. Nc3 {[%clk 0:03:00]}  d5 {[%clk 0:02:59]} 3. Nf3 {[%clk 0:03:01]}  Bf5 {[%clk 0:02:59]} 4. Ne5 {[%clk 0:03:02]}  e6 {[%clk 0:02:58]} 5. Bf4 {[%clk 0:02:57]}  Nfd7 {[%clk 0:02:53]} 6. e3 {[%clk 0:02:58]}  Nxe5 {[%clk 0:02:51]} 7. Bxe5 {[%clk 0:02:58]}  Nd7 {[%clk 0:02:51]} 8. Bf4 {[%clk 0:02:58]}  Bd6 {[%clk 0:02:47]} 9. Bxd6 {[%clk 0:02:57]}  cxd6 {[%clk 0:02:44]} 10. a3 {[%clk 0:02:51]}  O-O {[%clk 0:02:45]} 11. g4 {[%clk 0:02:52]}  Bg6 {[%clk 0:02:44]} 12. h4 {[%clk 0:02:52]}  h6 {[%clk 0:02:42]} 13. Ne2 {[%clk 0:02:52]}  Rc8 {[%clk 0:02:38]} 14. c3 {[%clk 0:02:47]}  Qb6 {[%clk 0:02:32]} 15. Qd2 {[%clk 0:02:47]}  e5 {[%clk 0:02:33]} 16. Bg2 {[%clk 0:02:45]}  Nf6 {[%clk 0:02:28]} 17. f3 {[%clk 0:02:41]}  Rfe8 {[%clk 0:02:16]} 18. O-O {[%clk 0:02:31]}  e4 {[%clk 0:02:09]} 19. g5 {[%clk 0:02:18]}  exf3 {[%clk 0:01:37]} 20. gxf6 {[%clk 0:02:09]}  fxg2 {[%clk 0:01:37]} 21. Rf2 {[%clk 0:02:05]}  Be4 {[%clk 0:01:37]} 22. fxg7 {[%clk 0:01:57]}  Qd8 {[%clk 0:01:33]} 23. Rf4 {[%clk 0:01:51]}  Kxg7 {[%clk 0:01:33]} 24. Ng3 {[%clk 0:01:48]}  f5 {[%clk 0:01:13]} 25. Nxe4 {[%clk 0:01:46]}  dxe4 {[%clk 0:01:06]} 26. Qf2 {[%clk 0:01:22]}  Rf8 {[%clk 0:01:04]} 27. Kh2 {[%clk 0:01:12]}  Kh7 {[%clk 0:00:49]} 28. Rg1 {[%clk 0:01:03]}  Rc7 {[%clk 0:00:46]} 29. Rxg2 {[%clk 0:01:02]}  Rg7 {[%clk 0:00:31]} 30. Rxf5 {[%clk 0:00:55]}  Rxg2+ {[%clk 0:00:29]} 31. Kxg2 {[%clk 0:00:46]}  Rg8+ {[%clk 0:00:23]} 32. Kh2 {[%clk 0:00:47]}  Rg7 {[%clk 0:00:15]} 33. Rf6 {[%clk 0:00:38]}  Qd7 {[%clk 0:00:14]} 34. Qf4 {[%clk 0:00:30]}  Kg8 {[%clk 0:00:11]} 35. Rf8+ {[%clk 0:00:24]}  Kh7 {[%clk 0:00:04]} 36. Qxe4+ {[%clk 0:00:17]}  Rg6 {[%clk 0:00:04]} 37. h5 {[%clk 0:00:17]} 1-0


[Site "https://www.chess.com"]

[Event "Titled Tuesday Blitz January 10 Late 2023"]
[White "Defend, Balint"]
[Black "Bortnyk, Olexandr"]
[WhiteFideId "17004853"]
[BlackFideId "14120828"]
[WhiteElo "1673"]
[BlackElo "2605"]
[Result "1/2-1/2"]
[Round "11"]
[TimeControl "180+2"]
[Date "2023.01.10"]
[WhiteClock "0:00:26"]
[BlackClock "0:00:08"]

1. e4 {[%clk 0:00:00]}  Nf6 {[%clk 0:00:00]} 2. e5 {[%clk 0:03:00]}  Nd5 {[%clk 0:02:58]} 3. c4 {[%clk 0:03:01]}  Nb6 {[%clk 0:02:58]} 4. d4 {[%clk 0:03:01]}  d6 {[%clk 0:02:59]} 5. exd6 {[%clk 0:03:02]}  exd6 {[%clk 0:02:59]} 6. h3 {[%clk 0:03:03]}  Be7 {[%clk 0:03:00]} 7. Bd3 {[%clk 0:03:01]}  O-O {[%clk 0:03:01]} 8. Nf3 {[%clk 0:03:01]}  Nc6 {[%clk 0:03:02]} 9. Nc3 {[%clk 0:03:01]}  Bf6 {[%clk 0:03:02]} 10. O-O {[%clk 0:02:57]}  Re8 {[%clk 0:03:03]} 11. b3 {[%clk 0:02:55]}  g6 {[%clk 0:03:01]} 12. Be3 {[%clk 0:02:46]}  Ne7 {[%clk 0:02:48]} 13. Rc1 {[%clk 0:02:43]}  Bf5 {[%clk 0:02:40]} 14. d5 {[%clk 0:02:38]}  Bxd3 {[%clk 0:02:38]} 15. Qxd3 {[%clk 0:02:30]}  Nf5 {[%clk 0:02:37]} 16. Ne4 {[%clk 0:02:31]}  Bg7 {[%clk 0:02:38]} 17. Bd2 {[%clk 0:02:21]}  Nd7 {[%clk 0:02:35]} 18. Bc3 {[%clk 0:02:20]}  Bxc3 {[%clk 0:02:35]} 19. Nxc3 {[%clk 0:02:18]}  Nh4 {[%clk 0:02:34]} 20. Rfe1 {[%clk 0:02:16]}  Rxe1+ {[%clk 0:02:33]} 21. Rxe1 {[%clk 0:02:10]}  Nc5 {[%clk 0:02:24]} 22. Qe3 {[%clk 0:02:10]}  Qf6 {[%clk 0:02:22]} 23. Nxh4 {[%clk 0:02:04]}  Qxh4 {[%clk 0:02:19]} 24. Ne4 {[%clk 0:02:04]}  Nxe4 {[%clk 0:02:20]} 25. Qxe4 {[%clk 0:02:03]}  Qxe4 {[%clk 0:02:06]} 26. Rxe4 {[%clk 0:02:04]}  Kf8 {[%clk 0:02:07]} 27. f4 {[%clk 0:02:05]}  a5 {[%clk 0:02:08]} 28. a4 {[%clk 0:02:02]}  Ra6 {[%clk 0:02:05]} 29. Kf2 {[%clk 0:02:01]}  Rb6 {[%clk 0:02:06]} 30. Re3 {[%clk 0:01:51]}  c6 {[%clk 0:02:06]} 31. dxc6 {[%clk 0:01:52]}  bxc6 {[%clk 0:02:07]} 32. Ke2 {[%clk 0:01:51]}  Rb4 {[%clk 0:02:07]} 33. Kd2 {[%clk 0:01:49]}  h5 {[%clk 0:02:05]} 34. g3 {[%clk 0:01:49]}  Rb7 {[%clk 0:02:03]} 35. Kc3 {[%clk 0:01:47]}  c5 {[%clk 0:01:49]} 36. g4 {[%clk 0:01:44]}  hxg4 {[%clk 0:01:47]} 37. hxg4 {[%clk 0:01:40]}  Ra7 {[%clk 0:01:14]} 38. g5 {[%clk 0:01:41]}  Re7 {[%clk 0:01:14]} 39. Rxe7 {[%clk 0:01:38]}  Kxe7 {[%clk 0:01:14]} 40. Kd3 {[%clk 0:01:36]}  Kd7 {[%clk 0:01:15]} 41. Ke3 {[%clk 0:01:36]}  Kd8 {[%clk 0:00:50]} 42. Ke4 {[%clk 0:01:35]}  Ke7 {[%clk 0:00:46]} 43. f5 {[%clk 0:01:34]}  Kd8 {[%clk 0:00:46]} 44. Kf4 {[%clk 0:01:34]}  Kc7 {[%clk 0:00:40]} 45. Ke4 {[%clk 0:01:01]}  Kc6 {[%clk 0:00:36]} 46. f6 {[%clk 0:00:58]}  Kc7 {[%clk 0:00:36]} 47. Kd3 {[%clk 0:00:48]}  Kd7 {[%clk 0:00:36]} 48. Ke3 {[%clk 0:00:46]}  Kc8 {[%clk 0:00:37]} 49. Kf4 {[%clk 0:00:46]}  Kd8 {[%clk 0:00:28]} 50. Ke3 {[%clk 0:00:44]}  Ke8 {[%clk 0:00:29]} 51. Kf4 {[%clk 0:00:45]}  Kd7 {[%clk 0:00:29]} 52. Ke3 {[%clk 0:00:46]}  Kc8 {[%clk 0:00:25]} 53. Kf4 {[%clk 0:00:45]}  Kb8 {[%clk 0:00:17]} 54. Ke3 {[%clk 0:00:42]}  Kb7 {[%clk 0:00:18]} 55. Kf4 {[%clk 0:00:41]}  Kb6 {[%clk 0:00:18]} 56. Ke3 {[%clk 0:00:41]}  Kc6 {[%clk 0:00:19]} 57. Ke4 {[%clk 0:00:41]}  Kd7 {[%clk 0:00:20]} 58. Kf4 {[%clk 0:00:41]}  Ke6 {[%clk 0:00:20]} 59. Ke4 {[%clk 0:00:42]}  d5+ {[%clk 0:00:10]} 60. cxd5+ {[%clk 0:00:41]}  Kd6 {[%clk 0:00:11]} 61. Kd3 {[%clk 0:00:41]}  Kxd5 {[%clk 0:00:11]} 62. Kc3 {[%clk 0:00:30]}  Kd6 {[%clk 0:00:12]} 63. Kd3 {[%clk 0:00:30]}  Kd5 {[%clk 0:00:11]} 64. Kc3 {[%clk 0:00:29]}  Kd6 {[%clk 0:00:07]} 65. Kc4 {[%clk 0:00:24]}  Kc6 {[%clk 0:00:07]} 66. Kc3 {[%clk 0:00:24]}  Kd5 {[%clk 0:00:07]} 67. Kd3 {[%clk 0:00:25]}  Kd6 {[%clk 0:00:08]} 68. Kc3 {[%clk 0:00:25]}  Kd5 {[%clk 0:00:09]} 69. Kd3 {[%clk 0:00:25]}  Kd6 {[%clk 0:00:08]} 70. Kc4 {[%clk 0:00:25]}  Kc6 {[%clk 0:00:07]} 71. Kd3 {[%clk 0:00:26]}  Kd5 {[%clk 0:00:08]} 1/2-1/2


[Site "https://www.chess.com"]

[Event "Titled Tuesday Blitz January 10 Late 2023"]
[White "Zierk, Steven"]
[Black "Vlassov, Nikolai"]
[WhiteFideId "2034255"]
[BlackFideId "4103360"]
[WhiteElo "2488"]
[BlackElo "2283"]
[Result "1-0"]
[Round "11"]
[TimeControl "180+2"]
[Date "2023.01.10"]
[WhiteClock "0:00:12"]
[BlackClock "0:00:03"]

1. e4 {[%clk 0:00:00]}  c5 {[%clk 0:00:00]} 2. Nf3 {[%clk 0:03:00]}  d6 {[%clk 0:02:59]} 3. d4 {[%clk 0:03:01]}  cxd4 {[%clk 0:02:59]} 4. Nxd4 {[%clk 0:03:01]}  Nf6 {[%clk 0:02:59]} 5. Nc3 {[%clk 0:03:02]}  g6 {[%clk 0:02:59]} 6. Be3 {[%clk 0:03:02]}  a6 {[%clk 0:02:59]} 7. f3 {[%clk 0:03:02]}  Nbd7 {[%clk 0:02:59]} 8. Qd2 {[%clk 0:03:00]}  Qc7 {[%clk 0:02:59]} 9. g4 {[%clk 0:02:59]}  h6 {[%clk 0:02:59]} 10. h4 {[%clk 0:02:59]}  b5 {[%clk 0:02:53]} 11. O-O-O {[%clk 0:02:53]}  Bb7 {[%clk 0:02:52]} 12. Be2 {[%clk 0:02:46]}  Ne5 {[%clk 0:02:52]} 13. g5 {[%clk 0:02:42]}  hxg5 {[%clk 0:02:51]} 14. hxg5 {[%clk 0:02:42]}  Rxh1 {[%clk 0:02:48]} 15. Rxh1 {[%clk 0:02:42]}  Nfd7 {[%clk 0:02:48]} 16. Nd5 {[%clk 0:02:42]}  Bxd5 {[%clk 0:02:49]} 17. exd5 {[%clk 0:02:36]}  Rc8 {[%clk 0:02:47]} 18. b3 {[%clk 0:02:37]}  Nb6 {[%clk 0:02:46]} 19. f4 {[%clk 0:02:32]}  Nxd5 {[%clk 0:02:38]} 20. Nxb5 {[%clk 0:02:26]}  axb5 {[%clk 0:02:06]} 21. Bxb5+ {[%clk 0:01:58]}  Nd7 {[%clk 0:02:03]} 22. Bd4 {[%clk 0:01:56]}  Nc3 {[%clk 0:01:57]} 23. Bc4 {[%clk 0:01:52]}  d5 {[%clk 0:01:49]} 24. Ba6 {[%clk 0:01:36]}  Ne4 {[%clk 0:01:34]} 25. Qd3 {[%clk 0:01:31]}  Qxf4+ {[%clk 0:01:28]} 26. Kb2 {[%clk 0:01:23]}  Rd8 {[%clk 0:01:23]} 27. Bb5 {[%clk 0:01:21]}  Qxg5 {[%clk 0:01:19]} 28. Rh8 {[%clk 0:01:18]}  f6 {[%clk 0:01:07]} 29. Qh3 {[%clk 0:01:16]}  Qd2 {[%clk 0:01:00]} 30. Bb6 {[%clk 0:01:06]}  f5 {[%clk 0:00:43]} 31. Rxf8+ {[%clk 0:00:59]}  Kxf8 {[%clk 0:00:21]} 32. Qh8+ {[%clk 0:00:49]}  Kf7 {[%clk 0:00:19]} 33. Bxd8 {[%clk 0:00:50]}  Ndf6 {[%clk 0:00:19]} 34. Bb6 {[%clk 0:00:51]}  Qc3+ {[%clk 0:00:17]} 35. Ka3 {[%clk 0:00:21]}  Qxc2 {[%clk 0:00:16]} 36. Bd4 {[%clk 0:00:21]}  Qc1+ {[%clk 0:00:13]} 37. Ka4 {[%clk 0:00:14]}  Nc3+ {[%clk 0:00:12]} 38. Ka5 {[%clk 0:00:12]}  Qa3+ {[%clk 0:00:10]} 39. Ba4 {[%clk 0:00:12]}  Nxa4 {[%clk 0:00:09]} 40. bxa4 {[%clk 0:00:11]}  Qxa2 {[%clk 0:00:05]} 41. Bxf6 {[%clk 0:00:12]}  exf6 {[%clk 0:00:04]} 42. Qh7+ {[%clk 0:00:12]}  Ke6 {[%clk 0:00:04]} 43. Qxg6 {[%clk 0:00:12]}  Qd2+ {[%clk 0:00:04]} 44. Kb6 {[%clk 0:00:13]}  Qb4+ {[%clk 0:00:03]} 45. Kc7 {[%clk 0:00:12]}  Qxa4 {[%clk 0:00:03]} 46. Qg1 {[%clk 0:00:12]} 1-0


[Site "https://www.chess.com"]

[Event "Titled Tuesday Blitz January 10 Late 2023"]
[White "Hansen, Eric"]
[Black "Averjanov, Alexey"]
[WhiteFideId "2606771"]
[BlackFideId "14109867"]
[WhiteElo "2609"]
[BlackElo "2399"]
[Result "1-0"]
[Round "11"]
[TimeControl "180+2"]
[Date "2023.01.10"]
[WhiteClock "0:02:02"]
[BlackClock "0:02:11"]

1. Nf3 {[%clk 0:00:00]}  d5 {[%clk 0:00:00]} 2. g3 {[%clk 0:03:00]}  Nf6 {[%clk 0:02:59]} 3. Bg2 {[%clk 0:03:01]}  e6 {[%clk 0:03:00]} 4. O-O {[%clk 0:03:02]}  b6 {[%clk 0:03:00]} 5. c4 {[%clk 0:03:02]}  Bb7 {[%clk 0:03:00]} 6. cxd5 {[%clk 0:03:03]}  exd5 {[%clk 0:03:00]} 7. d4 {[%clk 0:03:03]}  Bd6 {[%clk 0:02:59]} 8. Nc3 {[%clk 0:03:03]}  O-O {[%clk 0:02:59]} 9. Nb5 {[%clk 0:03:04]}  Be7 {[%clk 0:02:59]} 10. Bf4 {[%clk 0:03:04]}  Na6 {[%clk 0:02:58]} 11. Rc1 {[%clk 0:03:04]}  c6 {[%clk 0:02:59]} 12. Nc3 {[%clk 0:03:05]}  Nc7 {[%clk 0:02:59]} 13. Qb3 {[%clk 0:03:03]}  Ne6 {[%clk 0:02:59]} 14. Be5 {[%clk 0:02:59]}  Nd7 {[%clk 0:02:59]} 15. Rfd1 {[%clk 0:02:59]}  Nxe5 {[%clk 0:02:56]} 16. Nxe5 {[%clk 0:03:00]}  Qd6 {[%clk 0:02:56]} 17. e3 {[%clk 0:02:58]}  f6 {[%clk 0:02:55]} 18. Nxc6 {[%clk 0:02:54]}  Bxc6 {[%clk 0:02:52]} 19. Nxd5 {[%clk 0:02:06]}  Kh8 {[%clk 0:02:52]} 20. Rxc6 {[%clk 0:02:06]}  Qxc6 {[%clk 0:02:20]} 21. Nxe7 {[%clk 0:02:03]}  Qd7 {[%clk 0:02:21]} 22. Bxa8 {[%clk 0:02:03]}  Rxa8 {[%clk 0:02:17]} 23. Qd5 {[%clk 0:02:03]}  Qxd5 {[%clk 0:02:17]} 24. Nxd5 {[%clk 0:02:03]}  Rc8 {[%clk 0:02:11]} 25. Nc3 {[%clk 0:02:02]} 1-0


[Site "https://www.chess.com"]

[Event "Titled Tuesday Blitz January 10 Late 2023"]
[White "Jaracz, Pawel"]
[Black "Sourath Biswas"]
[WhiteFideId "1102222"]
[BlackFideId "35091484"]
[WhiteElo "2467"]
[BlackElo "2281"]
[Result "0-1"]
[Round "11"]
[TimeControl "180+2"]
[Date "2023.01.10"]
[WhiteClock "0:00:28"]
[BlackClock "0:00:28"]

1. e4 {[%clk 0:00:00]}  c6 {[%clk 0:00:00]} 2. d4 {[%clk 0:03:00]}  d5 {[%clk 0:03:00]} 3. e5 {[%clk 0:02:59]}  Bf5 {[%clk 0:03:01]} 4. h4 {[%clk 0:02:59]}  h5 {[%clk 0:03:01]} 5. Nc3 {[%clk 0:02:58]}  e6 {[%clk 0:03:01]} 6. Bd3 {[%clk 0:02:57]}  Bxd3 {[%clk 0:03:00]} 7. Qxd3 {[%clk 0:02:56]}  c5 {[%clk 0:02:47]} 8. Nge2 {[%clk 0:02:56]}  Nc6 {[%clk 0:02:20]} 9. dxc5 {[%clk 0:02:52]}  Bxc5 {[%clk 0:02:19]} 10. Qg3 {[%clk 0:02:45]}  Bf8 {[%clk 0:02:17]} 11. Bg5 {[%clk 0:02:45]}  Qb6 {[%clk 0:02:11]} 12. O-O-O {[%clk 0:02:40]}  Nh6 {[%clk 0:02:08]} 13. Bxh6 {[%clk 0:02:38]}  Rxh6 {[%clk 0:02:08]} 14. f4 {[%clk 0:02:37]}  Rg6 {[%clk 0:02:08]} 15. Qf3 {[%clk 0:02:28]}  Rg4 {[%clk 0:02:07]} 16. g3 {[%clk 0:02:27]}  O-O-O {[%clk 0:02:07]} 17. Kb1 {[%clk 0:02:26]}  Bb4 {[%clk 0:02:03]} 18. Rd3 {[%clk 0:02:23]}  f6 {[%clk 0:01:49]} 19. exf6 {[%clk 0:02:21]}  gxf6 {[%clk 0:01:39]} 20. Rhd1 {[%clk 0:02:08]}  Rdg8 {[%clk 0:01:39]} 21. Ka1 {[%clk 0:02:04]}  Kb8 {[%clk 0:01:30]} 22. a3 {[%clk 0:01:49]}  Bxc3 {[%clk 0:01:25]} 23. Rxc3 {[%clk 0:01:43]}  d4 {[%clk 0:01:14]} 24. Rb3 {[%clk 0:01:43]}  Qc5 {[%clk 0:01:07]} 25. Qe4 {[%clk 0:01:41]}  e5 {[%clk 0:01:07]} 26. c3 {[%clk 0:01:38]}  Qc4 {[%clk 0:01:01]} 27. Qc2 {[%clk 0:01:26]}  Rd8 {[%clk 0:00:40]} 28. Nc1 {[%clk 0:00:59]}  Rxg3 {[%clk 0:00:40]} 29. Qh7 {[%clk 0:00:29]}  Na5 {[%clk 0:00:39]} 30. Rb4 {[%clk 0:00:28]}  Qc7 {[%clk 0:00:31]} 31. fxe5 {[%clk 0:00:28]}  Qxh7 {[%clk 0:00:28]} 0-1


[Site "https://www.chess.com"]